bitfinex/quotes_BTCUSD_20250513
["timestamp","ask_amount","ask_price","bid_price","bid_amount"]
[1747150725883,0.24450251,103600.0,103590.0,0.89092403]
[1747150726093,0.24450251,103600.0,103590.0,0.68820177]
[1747150726300,0.24450251,103600.0,103590.0,0.89092393]
[1747150726701,0.23489019,103600.0,103590.0,0.68820177]
[1747150727092,0.23489019,103600.0,103590.0,0.88127059]
[1747150727533,0.23489019,103600.0,103590.0,0.89092403]
[1747150727769,0.23489019,103600.0,103590.0,0.68820177]
[1747150727991,0.23489019,103600.0,103590.0,0.88127059]
[1747150728209,0.23489019,103600.0,103590.0,0.89092403]
[1747150728632,0.23489019,103600.0,103590.0,0.90057737]
[1747150729303,0.24454251,103600.0,103590.0,0.91023053]
[1747150729738,0.24454251,103600.0,103590.0,0.90057737]
[1747150730157,0.23489019,103600.0,103590.0,0.68820177]
[1747150730580,0.23489019,103600.0,103590.0,0.88127059]
[1747150731004,0.23489019,103600.0,103590.0,0.55475463]
[1747150731269,0.23489019,103600.0,103590.0,0.89092403]
[1747150731494,0.23489019,103600.0,103590.0,0.68820177]
[1747150731885,0.23489019,103600.0,103590.0,0.35203237]
[1747150732105,0.23489019,103600.0,103590.0,0.68820177]
[1747150732294,0.23489019,103600.0,103590.0,0.87527059]
[1747150732501,0.23489019,103600.0,103590.0,0.68224177]
[1747150732790,0.23489019,103600.0,103590.0,0.34807237]
[1747150734546,0.33219959,103600.0,103590.0,0.34807237]
[1747150734809,0.33219959,103600.0,103590.0,0.00807237]
[1747150735030,0.74549601,103600.0,103590.0,0.00807237]
[1747150735266,0.76003686,103600.0,103590.0,0.00204]
[1747150735481,0.42386746,103600.0,103590.0,0.00204]
[1747150735913,0.42386746,103600.0,103590.0,4e-05]
[1747150736154,0.42686746,103600.0,103590.0,4e-05]
[1747150736371,0.35174044,103600.0,103590.0,4e-05]
[1747150736623,0.25249554,103580.0,103570.0,0.6761694]
[1747150736854,0.34984494,103580.0,103570.0,0.6761694]
[1747150737098,0.34984494,103580.0,103570.0,0.87530909]
[1747150737350,0.04979362,103580.0,103570.0,0.9139288]
[1747150737591,0.03865551,103580.0,103570.0,0.9139288]
[1747150738032,0.2418808,103580.0,103570.0,0.91392898]
[1747150738248,0.25172699,103580.0,103570.0,0.91492898]
[1747150738485,0.02948516,103580.0,103570.0,0.92458372]
[1747150738710,0.02948516,103580.0,103570.0,0.92458326]
[1747150738893,0.03913953,103580.0,103570.0,0.92458326]
[1747150739028,0.22257309,103580.0,103570.0,0.90627387]
[1747150739244,0.25221891,103580.0,103570.0,0.89661904]
[1747150739907,0.25221891,103580.0,103570.0,0.90627378]
[1747150740110,0.05913108,103580.0,103570.0,0.90627378]
[1747150740328,0.03983052,103580.0,103570.0,0.91592843]
[1747150740652,0.05913898,103580.0,103570.0,0.90627378]
[1747150740807,0.07993898,103580.0,103570.0,0.90627378]
[1747150741226,0.08959335,103580.0,103570.0,0.90627378]
[1747150741447,0.28268081,103580.0,103570.0,0.90627387]
[1747150741628,0.27302709,103580.0,103570.0,0.89661941]
[1747150741838,0.26337309,103580.0,103570.0,0.88696439]
[1747150742037,0.26337309,103580.0,103570.0,0.90627453]
[1747150742213,0.07028563,103580.0,103570.0,0.9255841]
[1747150742430,0.26337309,103580.0,103570.0,0.91592936]
[1747150742707,0.26337309,103580.0,103570.0,0.90631453]
[1747150743007,0.07028563,103580.0,103570.0,0.90631453]
[1747150743099,0.26337309,103580.0,103570.0,0.91596936]
[1747150744202,0.0205228,103580.0,103570.0,0.92562401]
[1747150744411,0.01983032,103580.0,103570.0,0.92562401]
[1747150744628,0.03913869,103580.0,103570.0,0.92562401]
[1747150744835,0.01017642,103580.0,103570.0,0.92562401]
[1747150745079,0.01983014,103580.0,103570.0,0.92562401]
[1747150745276,0.02948404,103580.0,103570.0,0.92562401]
[1747150745924,0.0005228,103580.0,103570.0,0.92562401]
[1747150746365,0.01017633,103580.0,103570.0,1.66276801]
[1747150746544,0.01983005,103580.0,103570.0,1.38960601]
[1747150746998,0.01983005,103580.0,103570.0,1.47888801]
[1747150747217,0.0005228,103580.0,103570.0,1.73038801]
[1747150748679,0.0005228,103580.0,103570.0,2.16386681]
[1747150752235,0.0005228,103580.0,103570.0,2.17840766]
[1747150752590,0.07712702,103600.0,103590.0,1.2343268]
[1747150752791,0.04865083,103610.0,103600.0,0.56200658]
[1747150753026,0.10607764,103620.0,103610.0,0.22198516]
[1747150753239,0.12577701,103620.0,103610.0,0.89815456]
[1747150753441,0.12577701,103620.0,103610.0,0.90418814]
[1747150754267,0.13542719,103620.0,103610.0,0.90423628]
[1747150754463,0.13642719,103620.0,103610.0,0.90423628]
[1747150754928,0.11712702,103620.0,103610.0,0.90423628]
[1747150755179,0.04,103620.0,103610.0,1.11395628]
[1747150755888,0.00964887,103630.0,103620.0,0.56196374]
[1747150756111,0.03959784,103630.0,103620.0,1.23430254]
[1747150756329,0.04924708,103630.0,103620.0,1.24033612]
[1747150756537,0.05889651,103630.0,103620.0,1.24033612]
[1747150756750,0.05889651,103630.0,103620.0,1.2694912]
[1747150757195,0.08864603,103630.0,103620.0,1.2694912]
[1747150757642,0.07034708,103630.0,103620.0,1.2694912]
[1747150757849,0.07999651,103630.0,103620.0,1.2694912]
[1747150758332,0.28264108,103630.0,103620.0,0.9333218]
[1747150758549,0.08964678,103630.0,103620.0,0.9333218]
[1747150758766,0.07999716,103630.0,103620.0,1.2694912]
[1747150760542,0.07034764,103630.0,103620.0,1.2694912]
[1747150760761,0.07999716,103630.0,103620.0,1.2694912]
[1747150760977,0.07034764,103630.0,103620.0,1.2694912]
[1747150761414,0.27299156,103630.0,103620.0,1.26949129]
[1747150761637,0.07034764,103630.0,103620.0,1.27914128]
[1747150761867,0.27299165,103630.0,103620.0,1.26949129]
[1747150762113,0.07999716,103630.0,103620.0,1.27914128]
[1747150762330,0.07999716,103630.0,103620.0,1.26949101]
[1747150762691,0.08003716,103630.0,103620.0,1.26949101]
[1747150762903,0.08003716,103630.0,103620.0,1.27914128]
[1747150763111,0.08003716,103630.0,103620.0,1.27918128]
[1747150764151,0.08003716,103630.0,103620.0,1.48826128]
[1747150765428,0.07038764,103630.0,103620.0,0.81592248]
[1747150765613,0.08003716,103630.0,103620.0,1.48826128]
[1747150765821,0.27303146,103630.0,103620.0,1.47861129]
[1747150766027,0.08968687,103630.0,103620.0,1.48826147]
[1747150766250,0.08003716,103630.0,103620.0,1.49791146]
[1747150766459,0.26338287,103630.0,103620.0,1.12314154]
[1747150766676,0.26338287,103630.0,103620.0,1.3426319]
[1747150767557,0.26338287,103630.0,103620.0,1.33298154]
[1747150767784,0.07038857,103630.0,103620.0,1.3522818]
[1747150768004,0.27303258,103630.0,103620.0,1.68845139]
[1747150768226,0.27303258,103630.0,103620.0,1.35228199]
[1747150768702,0.27303258,103630.0,103620.0,1.68845139]
[1747150768914,0.00204,103630.0,103620.0,1.73780138]
[1747150769126,0.00204,103630.0,103620.0,2.87505305]
[1747150769335,0.04103803,103630.0,103620.0,2.07153105]
[1747150769550,0.05078897,103630.0,103620.0,2.04507905]
[1747150769971,0.06043803,103630.0,103620.0,1.96653805]
[1747150770409,0.05078897,103630.0,103620.0,1.96653805]
[1747150770843,0.07008737,103630.0,103620.0,1.85957866]
[1747150771038,0.07973689,103630.0,103620.0,1.83991665]
[1747150771245,0.07973689,103630.0,103620.0,1.73169965]
[1747150771463,0.07008737,103630.0,103620.0,2.20770065]
[1747150771906,0.0797368,103630.0,103620.0,2.20770065]
[1747150772347,0.08938632,103630.0,103620.0,2.04340765]
[1747150772550,0.0797368,103630.0,103620.0,2.04340765]
[1747150772753,0.08938632,103630.0,103620.0,2.04340765]
[1747150773116,0.0797368,103630.0,103620.0,2.04340765]
[1747150773327,0.07008727,103630.0,103620.0,2.04340765]
[1747150773538,0.08938622,103630.0,103620.0,2.04340765]
[1747150773762,0.07973661,103630.0,103620.0,2.04340765]
[1747150774985,0.01168887,103630.0,103620.0,2.04340765]
[1747150775201,0.00204,103630.0,103620.0,2.04340765]
[1747150775405,0.00204,103630.0,103620.0,2.14071705]
[1747150775609,0.01168887,103630.0,103620.0,2.14071705]
[1747150775819,0.00204,103630.0,103620.0,2.14071705]
[1747150776027,0.01168887,103630.0,103620.0,2.14071705]
[1747150777313,0.00204,103630.0,103620.0,2.14071705]
[1747150777743,0.01168887,103630.0,103620.0,2.14071705]
[1747150778164,0.28248052,103630.0,103620.0,1.04971086]
[1747150778373,0.07983651,103630.0,103620.0,1.39553025]
[1747150778587,0.07018708,103630.0,103620.0,1.39553025]
[1747150779008,0.07018708,103630.0,103620.0,1.73169965]
[1747150779225,0.07983642,103630.0,103620.0,1.85677065]
[1747150779435,0.08948594,103630.0,103620.0,1.18443185]
[1747150779643,0.08948594,103630.0,103620.0,1.85677065]
[1747150779850,0.07983642,103630.0,103620.0,1.86200965]
[1747150780459,0.07018708,103630.0,103620.0,1.86200965]
[1747150780756,0.07983642,103630.0,103620.0,1.86200965]
[1747150781267,0.07983651,103630.0,103620.0,1.86200965]
[1747150781477,0.07983642,103630.0,103620.0,1.86200965]
[1747150781684,0.07018708,103630.0,103620.0,1.86200965]
[1747150782304,0.04124,103630.0,103620.0,1.86200965]
[1747150782531,0.04123802,103630.0,103620.0,1.86200965]
[1747150782916,0.03158887,103630.0,103620.0,1.86200965]
[1747150783132,0.00204,103630.0,103620.0,1.9738599]
[1747150783343,0.0496471,103650.0,103640.0,0.56188091]
[1747150783546,0.04,103650.0,103640.0,2.00990631]
[1747150783778,0.0496471,103650.0,103640.0,1.41857289]
[1747150784003,0.0592943,103650.0,103640.0,1.41857289]
[1747150784216,0.06894168,103650.0,103640.0,1.41857289]
[1747150785087,0.08058925,103650.0,103640.0,1.41857289]
[1747150785675,0.08058981,103650.0,103640.0,1.41861307]
[1747150785821,0.09023757,103650.0,103640.0,1.1228522]
[1747150786032,0.28319463,103650.0,103640.0,0.77703467]
[1747150786238,0.28319528,103650.0,103640.0,1.11320407]
[1747150786851,0.25425267,103650.0,103640.0,0.55511358]
[1747150787047,0.25425267,103650.0,103640.0,0.34607358]
[1747150787546,0.25425267,103650.0,103640.0,0.00607358]
[1747150787931,0.25425267,103650.0,103640.0,0.34224298]
[1747150788139,0.25425267,103650.0,103640.0,0.54486744]
[1747150788273,0.25425267,103650.0,103640.0,0.20869804]
[1747150788471,0.25425267,103650.0,103640.0,0.55451603]
[1747150788707,0.24460491,103650.0,103640.0,0.53521866]
[1747150788939,0.23495706,103650.0,103640.0,0.00607358]
[1747150789145,0.23495706,103650.0,103640.0,0.34224298]
[1747150789705,0.23495706,103650.0,103640.0,0.00607358]
[1747150789922,0.23495706,103650.0,103640.0,0.53521866]
[1747150790121,0.23495706,103650.0,103640.0,0.55451594]
[1747150790753,0.24460472,103650.0,103640.0,0.56416444]
[1747150790968,0.0516471,103650.0,103640.0,0.58346088]
[1747150791164,0.05164701,103650.0,103640.0,0.92346088]
[1747150791370,0.07094169,103650.0,103640.0,0.57764335]
[1747150791584,0.08058935,103650.0,103640.0,0.92346041]
[1747150792414,0.07094169,103650.0,103640.0,0.92346041]
[1747150792627,0.08058907,103650.0,103640.0,0.92346041]
[1747150793411,0.08062898,103650.0,103640.0,0.92346041]
[1747150793581,0.0709815,103650.0,103640.0,0.92346041]
[1747150793791,0.05168701,103650.0,103640.0,0.92346041]
[1747150794032,0.0516872,103650.0,103640.0,0.92346041]
[1747150794248,0.07098197,103650.0,103640.0,0.92346041]
[1747150794442,0.08062963,103650.0,103640.0,0.92346041]
[1747150794649,0.07098197,103650.0,103640.0,0.92346041]
[1747150795889,0.06133449,103650.0,103640.0,0.92346041]
[1747150796427,0.07098197,103650.0,103640.0,0.92346041]
[1747150796685,0.08062963,103650.0,103640.0,0.58729101]
[1747150796899,0.07098197,103650.0,103640.0,0.92346041]
[1747150797107,0.06133449,103650.0,103640.0,0.92346041]
[1747150797320,0.04204,103650.0,103640.0,1.25962981]
[1747150797544,0.04204,103650.0,103640.0,3.01927221]
[1747150797545,0.00204,103650.0,103640.0,3.01927221]
[1747150797775,0.00204,103650.0,103640.0,3.03381306]
[1747150798014,0.0391,103670.0,103660.0,0.89804749]
[1747150798227,0.0391,103670.0,103660.0,1.32668749]
[1747150798228,0.0194,103670.0,103660.0,1.32668749]
[1747150798463,0.0194,103670.0,103660.0,1.33272107]
[1747150798887,0.02904524,103670.0,103660.0,1.33276107]
[1747150799119,0.0194,103670.0,103660.0,1.33276107]
[1747150799335,0.00014495,103670.0,103660.0,1.79036947]
[1747150799764,0.00979019,103670.0,103660.0,1.79036947]
[1747150799913,0.00114495,103670.0,103660.0,1.79036947]
[1747150800377,0.01079019,103670.0,103660.0,1.79036947]
[1747150800573,0.01179019,103670.0,103660.0,1.79036947]
[1747150800795,0.00214495,103670.0,103660.0,1.79036947]
[1747150801440,0.00214495,103670.0,103660.0,1.80956947]
[1747150801971,0.00214495,103670.0,103660.0,2.17967972]
[1747150802400,0.02904348,103690.0,103680.0,1.23417408]
[1747150802621,0.02952708,103690.0,103680.0,1.23417408]
[1747150802833,0.02952708,103690.0,103680.0,1.24020766]
[1747150803036,0.0198836,103690.0,103680.0,1.24020766]
[1747150803239,0.0004836,103690.0,103680.0,1.87333393]
[1747150803875,0.0014836,103690.0,103680.0,1.98518418]
[1747150804081,0.0015236,103690.0,103680.0,1.98518418]
[1747150804288,0.0015236,103690.0,103680.0,2.00508418]
[1747150804488,0.0015236,103690.0,103680.0,2.02598418]
[1747150804913,0.0015236,103690.0,103680.0,1.42645618]
[1747150805137,0.0015236,103690.0,103680.0,4.47544287]
[1747150805347,0.0429,103710.0,103700.0,0.5617925]
[1747150805555,0.06232804,103710.0,103700.0,2.7927623]
[1747150805756,0.02142804,103710.0,103700.0,2.28549718]
[1747150805971,0.04071192,103710.0,103700.0,1.53035448]
[1747150806184,0.27225809,103710.0,103700.0,1.33835303]
[1747150806408,0.07941266,103710.0,103700.0,1.34799567]
[1747150806592,0.27525809,103710.0,103700.0,1.34799585]
[1747150806845,0.27525809,103710.0,103700.0,1.35763849]
[1747150807029,0.27525809,103710.0,103700.0,0.99254062]
[1747150807030,0.26561647,103710.0,103700.0,0.99254062]
[1747150807242,0.06977104,103710.0,103700.0,0.81476025]
[1747150807473,0.06977104,103710.0,103700.0,1.1605722]
[1747150808225,0.06977039,103710.0,103700.0,1.1605722]
[1747150808455,0.08905483,103710.0,103700.0,1.1605722]
[1747150809175,0.07941237,103710.0,103700.0,1.1606122]
[1747150809401,0.04084499,103710.0,103700.0,1.1606122]
[1747150809632,0.02142822,103710.0,103700.0,1.1606122]
[1747150809878,0.05127011,103710.0,103700.0,1.1606122]
[1747150810122,0.06152822,103710.0,103700.0,1.1606122]
[1747150810341,0.05188651,103710.0,103700.0,1.1606122]
[1747150810573,0.00214499,103710.0,103700.0,1.6124196]
[1747150810788,0.00214499,103710.0,103700.0,1.2762502]
[1747150811403,0.00214499,103710.0,103700.0,1.709729]
[1747150811627,0.00214499,103710.0,103700.0,1.76306985]
[1747150812295,0.00214499,103710.0,103700.0,2.17536985]
[1747150813404,0.0557941,103740.0,103730.0,0.56172836]
[1747150813611,0.0557941,103740.0,103730.0,2.91281416]
[1747150813822,0.0557941,103740.0,103730.0,1.87656976]
[1747150813823,0.06543293,103740.0,103730.0,1.87656976]
[1747150814029,0.07507185,103740.0,103730.0,1.58297876]
[1747150814251,0.07511185,103740.0,103730.0,1.02667179]
[1747150814538,0.07711185,103740.0,103730.0,1.36284119]
[1747150814769,0.26990226,103740.0,103730.0,1.12308162]
[1747150815009,0.26990226,103740.0,103730.0,1.10741806]
[1747150815972,0.27190226,103740.0,103730.0,1.10741806]
[1747150816212,0.26226315,103740.0,103730.0,1.10741806]
[1747150816438,0.26226315,103740.0,103730.0,0.9049694]
[1747150816439,0.25262376,103740.0,103730.0,0.9049694]
[1747150817468,0.25262376,103740.0,103730.0,0.5688]
[1747150817700,0.25262376,103740.0,103730.0,0.34]
[1747150818240,0.25262376,103740.0,103710.0,0.62977378]
[1747150818241,0.22174918,103720.0,103710.0,0.62977378]
[1747150818459,0.27009052,103720.0,103710.0,0.98161005]
[1747150818729,0.27009052,103720.0,103710.0,1.56001176]
[1747150818730,0.07726368,103720.0,103710.0,1.56001176]
[1747150818988,0.27009052,103720.0,103710.0,1.56001176]
[1747150819220,0.26045002,103720.0,103710.0,1.56969365]
[1747150819425,0.26045002,103720.0,103710.0,1.56005194]
[1747150819689,0.26045002,103720.0,103710.0,1.56205194]
[1747150819883,0.06762318,103720.0,103710.0,1.58133527]
[1747150820309,0.05798128,103720.0,103710.0,1.58133527]
[1747150820917,0.0483405,103720.0,103710.0,1.58133527]
[1747150821127,0.20852376,103740.0,103730.0,0.55208879]
[1747150821333,0.02537293,103740.0,103730.0,0.90753799]
[1747150821483,0.07431204,103740.0,103730.0,0.90753799]
[1747150821696,0.0550341,103740.0,103730.0,0.90753799]
[1747150821898,0.08395077,103740.0,103730.0,0.90753799]
[1747150822096,0.09359006,103740.0,103730.0,0.57739243]
[1747150822296,0.09559006,103740.0,103730.0,0.57739243]
[1747150822507,0.26910216,103740.0,103730.0,0.34602384]
[1747150822702,0.27110216,103740.0,103730.0,0.5484724]
[1747150823063,0.36841156,103740.0,103730.0,0.34602384]
[1747150823259,0.35877245,103740.0,103730.0,0.34602384]
[1747150823662,0.35877245,103740.0,103730.0,0.34]
[1747150826534,0.23139052,103720.0,103710.0,0.86817586]
[1747150826759,0.26119002,103720.0,103710.0,0.85856589]
[1747150827173,0.26119002,103720.0,103710.0,0.88387436]
[1747150827372,0.26119002,103720.0,103710.0,0.88387439]
[1747150827626,0.26119002,103720.0,103710.0,1.22387439]
[1747150827844,0.26119002,103720.0,103710.0,1.2335161]
[1747150828037,0.26119002,103720.0,103710.0,1.21423259]
[1747150828237,0.26119002,103720.0,103710.0,1.56204379]
[1747150828642,0.26119002,103720.0,103710.0,1.5716855]
[1747150828882,0.26119002,103720.0,103710.0,1.5736855]
[1747150829290,0.26119002,103720.0,103710.0,1.58332712]
[1747150829711,0.05872184,103720.0,103710.0,1.23639943]
[1747150829914,0.06836299,103720.0,103710.0,1.23639943]
[1747150830129,0.06836299,103720.0,103710.0,1.57256883]
[1747150830543,0.06836299,103720.0,103710.0,1.56292721]
[1747150830742,0.07800423,103720.0,103710.0,1.57256883]
[1747150830979,0.06836299,103720.0,103710.0,1.57256883]
[1747150831612,0.05872128,103720.0,103710.0,1.57256883]
[1747150831817,0.0780034,103720.0,103710.0,1.57256883]
[1747150832354,0.0780034,103720.0,103710.0,1.23639943]
[1747150832624,0.0780034,103720.0,103710.0,1.34384883]
[1747150832839,0.27083108,103720.0,103710.0,1.3149238]
[1747150833049,0.06836281,103720.0,103710.0,0.9883962]
[1747150833275,0.06836281,103720.0,103710.0,1.33420731]
[1747150833516,0.06836281,103720.0,103710.0,1.34384893]
[1747150833948,0.06836281,103720.0,103710.0,1.33420731]
[1747150834145,0.07800405,103720.0,103710.0,1.34384893]
[1747150834341,0.07800396,103720.0,103710.0,1.34384893]
[1747150834888,0.07800396,103720.0,103710.0,1.33420731]
[1747150835265,0.06836281,103720.0,103710.0,1.34384893]
[1747150835477,0.05872175,103720.0,103710.0,0.92728893]
[1747150835672,0.0683629,103720.0,103710.0,0.92728893]
[1747150837381,0.07800414,103720.0,103710.0,0.9080056]
[1747150837592,0.27083098,103720.0,103710.0,0.9080056]
[1747150837801,0.28047232,103720.0,103710.0,0.9080056]
[1747150838167,0.07800414,103720.0,103710.0,0.91764722]
[1747150838369,0.28047232,103720.0,103710.0,0.9080056]
[1747150838568,0.27083154,103720.0,103710.0,0.9080056]
[1747150838782,0.27083154,103720.0,103710.0,0.91764731]
[1747150839214,0.27083154,103720.0,103710.0,0.35006481]
[1747150839215,0.25154942,103720.0,103710.0,0.35006481]
[1747150839421,0.25154942,103720.0,103710.0,0.55255241]
[1747150839657,0.25154942,103720.0,103710.0,0.56219449]
[1747150839874,0.25154942,103720.0,103710.0,0.55255241]
[1747150840087,0.25154942,103720.0,103710.0,0.5621944]
[1747150840518,0.25154942,103720.0,103710.0,0.8983638]
[1747150840738,0.25154942,103720.0,103710.0,0.90800569]
[1747150841391,0.25154942,103720.0,103710.0,0.8983638]
[1747150841978,0.25154942,103720.0,103710.0,0.90800569]
[1747150843166,0.25154942,103720.0,103710.0,0.89836389]
[1747150843521,0.25154942,103720.0,103710.0,0.90800588]
[1747150843724,0.25154942,103720.0,103710.0,0.89836389]
[1747150843943,0.25154942,103720.0,103710.0,0.55255241]
[1747150844113,0.25154942,103720.0,103710.0,0.55255251]
[1747150844329,0.25154942,103720.0,103710.0,0.54291024]
[1747150844549,0.25154942,103720.0,103710.0,0.55255251]
[1747150844550,0.24190818,103720.0,103710.0,0.55255251]
[1747150844711,0.24190818,103720.0,103710.0,0.90800607]
[1747150845137,0.24190818,103720.0,103710.0,0.91764796]
[1747150845347,0.03944,103720.0,103710.0,1.26345898]
[1747150845569,4e-05,103720.0,103710.0,1.26345898]
[1747150845774,0.00968059,103720.0,103710.0,0.59112018]
[1747150845990,0.0096805,103720.0,103710.0,0.59112018]
[1747150846222,0.05982109,103720.0,103710.0,1.26345898]
[1747150846439,0.06946178,103720.0,103710.0,0.59112018]
[1747150846653,0.06946178,103720.0,103710.0,0.92728958]
[1747150846915,0.07910265,103720.0,103710.0,0.92728958]
[1747150847376,0.06946178,103720.0,103710.0,0.92728958]
[1747150847629,0.07910265,103720.0,103710.0,0.92728958]
[1747150847867,0.06946178,103720.0,103710.0,0.92728958]
[1747150848106,0.07910256,103720.0,103710.0,0.92728958]
[1747150848538,0.79044601,103720.0,103710.0,0.01006481]
[1747150848756,0.45427661,103720.0,103710.0,0.01006481]
[1747150848957,0.42708528,103720.0,103710.0,0.01006481]
[1747150849592,0.42708528,103720.0,103710.0,0.00204]
[1747150850086,0.34995826,103720.0,103710.0,0.00204]
[1747150850391,0.34995826,103720.0,103710.0,4e-05]
[1747150850959,0.24438751,103710.0,103700.0,0.02521407]
[1747150851222,0.24440704,103700.0,103690.0,0.6761694]
[1747150851364,0.24440704,103700.0,103690.0,0.67631439]
[1747150851768,0.24440704,103700.0,103690.0,0.34014499]
[1747150851973,0.34171644,103700.0,103690.0,0.34014499]
[1747150852175,0.34171644,103700.0,103690.0,0.34617134]
[1747150852384,0.34171644,103700.0,103690.0,0.34917134]
[1747150853167,0.34171644,103700.0,103690.0,0.34917215]
[1747150853583,0.34171644,103700.0,103690.0,0.34617215]
[1747150855034,0.34171644,103700.0,103690.0,0.34617181]
[1747150855186,0.24440704,103700.0,103690.0,0.34617181]
[1747150855408,0.25404996,103700.0,103690.0,0.87522384]
[1747150855654,0.25404996,103700.0,103690.0,0.91379905]
[1747150855655,0.0419,103700.0,103690.0,0.91379905]
[1747150855884,0.01928527,103700.0,103690.0,0.91379905]
[1747150856298,0.24107806,103700.0,103690.0,0.56798617]
[1747150856503,0.02892782,103700.0,103690.0,0.91379905]
[1747150857167,0.03857083,103700.0,103690.0,0.91579905]
[1747150857370,0.03857083,103700.0,103690.0,0.57762965]
[1747150857580,0.24107806,103700.0,103690.0,0.9254428]
[1747150857785,0.03857074,103700.0,103690.0,0.92844215]
[1747150857981,0.04821375,103700.0,103690.0,0.92844215]
[1747150858199,0.03857074,103700.0,103690.0,0.92644215]
[1747150858502,0.03857074,103700.0,103690.0,0.93044215]
[1747150858930,0.06881375,103700.0,103690.0,0.93044215]
[1747150859147,0.28277778,103700.0,103690.0,0.35317181]
[1747150859386,0.25384996,103700.0,103690.0,0.35317181]
[1747150859587,0.25384996,103700.0,103690.0,0.01317181]
[1747150860040,0.25384996,103700.0,103690.0,0.35317181]
[1747150860459,0.25384996,103700.0,103690.0,0.00617181]
[1747150860675,0.25384996,103700.0,103690.0,0.34817181]
[1747150860871,0.25384996,103700.0,103690.0,0.35017181]
[1747150861293,0.25388996,103700.0,103690.0,0.35021181]
[1747150861518,0.33101698,103700.0,103690.0,0.35021181]
[1747150861743,0.25388996,103700.0,103690.0,0.35021181]
[1747150865055,0.25388996,103700.0,103690.0,0.89855191]
[1747150865233,0.07066866,103700.0,103690.0,0.91783914]
[1747150865479,0.26353269,103700.0,103690.0,0.90819566]
[1747150865690,0.26353269,103700.0,103690.0,0.91783932]
[1747150865897,0.26353269,103700.0,103690.0,0.58166992]
[1747150866110,0.26353269,103700.0,103690.0,0.91783932]
[1747150866734,0.25389005,103700.0,103690.0,0.68638121]
[1747150866949,0.25389005,103700.0,103690.0,0.35021181]
[1747150867178,0.25389005,103700.0,103690.0,0.68638121]
[1747150867406,0.25389005,103700.0,103690.0,0.35021181]
[1747150867618,0.25389005,103700.0,103690.0,0.68638121]
[1747150868666,0.25389005,103700.0,103690.0,0.87926384]
[1747150868879,0.24424713,103700.0,103690.0,0.68638121]
[1747150870441,0.24424713,103700.0,103690.0,0.35021181]
[1747150870850,0.24424713,103700.0,103690.0,0.01021181]
[1747150875493,0.34155653,103700.0,103690.0,0.01021181]
[1747150881567,0.67772593,103700.0,103690.0,0.01021181]
[1747150881997,0.34155653,103700.0,103690.0,0.01021181]
[1747150882200,0.34155653,103700.0,103690.0,0.00218499]
[1747150882423,0.34355653,103700.0,103690.0,0.00218499]
[1747150883617,0.57415653,103700.0,103690.0,0.00018499]
[1747150883983,0.57615653,103700.0,103690.0,0.00018499]
[1747150886034,0.57615653,103700.0,103680.0,0.15202423]
[1747150886035,0.56651343,103700.0,103680.0,0.15202423]
[1747150886242,0.34149597,103690.0,103680.0,0.02120685]
[1747150886470,0.34149597,103690.0,103680.0,0.00602768]
[1747150886695,0.34153597,103690.0,103680.0,0.00602768]
[1747150887642,0.34153597,103690.0,103680.0,0.34219708]
[1747150887849,0.24422657,103690.0,103680.0,0.34219708]
[1747150888293,0.24422657,103690.0,103680.0,0.68219708]
[1747150888498,0.24422657,103690.0,103680.0,0.70402721]
[1747150888711,0.24422657,103690.0,103680.0,0.36785781]
[1747150888939,0.24422657,103690.0,103680.0,0.36985781]
[1747150890085,0.24422657,103690.0,103680.0,0.37185781]
[1747150890304,0.25387042,103690.0,103680.0,0.37185781]
[1747150890531,0.24422657,103690.0,103680.0,0.37185781]
[1747150894792,0.24422657,103690.0,103680.0,0.90092844]
[1747150895039,0.24422657,103690.0,103680.0,0.70802721]
[1747150895467,0.24422657,103690.0,103680.0,0.90092844]
[1747150895674,0.24422657,103690.0,103680.0,0.70802721]
[1747150896351,0.24422657,103690.0,103680.0,0.70806721]
[1747150896583,0.24422657,103690.0,103680.0,0.37189781]
[1747150896824,0.24422657,103690.0,103680.0,0.70806721]
[1747150897289,0.24422657,103690.0,103680.0,0.37189781]
[1747150897731,0.24422657,103690.0,103680.0,0.70806721]
[1747150897940,0.24422657,103690.0,103680.0,0.90096844]
[1747150898156,0.24422657,103690.0,103680.0,0.70806721]
[1747150898812,0.20252657,103690.0,103680.0,0.90096844]
[1747150899267,0.22252657,103690.0,103680.0,0.70806721]
[1747150899482,0.24292657,103690.0,103680.0,0.90096844]
[1747150899685,0.24292657,103690.0,103680.0,0.70806721]
[1747150904034,0.24292657,103690.0,103680.0,0.90096844]
[1747150904246,0.20252657,103690.0,103680.0,0.70806721]
[1747150904665,0.22162657,103690.0,103680.0,0.70806721]
[1747150904888,0.22162657,103690.0,103680.0,0.90096844]
[1747150905589,0.01932705,103690.0,103680.0,1.30587189]
[1747150905786,0.01932705,103690.0,103680.0,2.71441389]
[1747150906043,0.03861418,103690.0,103680.0,2.63172489]
[1747150906267,0.03861418,103690.0,103680.0,2.06228049]
[1747150906729,0.03861418,103690.0,103680.0,2.39844989]
[1747150906926,4e-05,103690.0,103680.0,2.72091929]
[1747150907296,0.00968338,103690.0,103680.0,2.72091929]
[1747150908093,4e-05,103690.0,103680.0,2.72091929]
[1747150909998,0.0385713,103700.0,103690.0,0.21213032]
[1747150910223,0.03866447,103700.0,103690.0,0.56401106]
[1747150910661,0.02902137,103700.0,103690.0,0.57365454]
[1747150910864,0.03866438,103700.0,103690.0,0.57365463]
[1747150911733,0.03866438,103700.0,103690.0,0.5543674]
[1747150911943,0.25252906,103700.0,103690.0,0.54476384]
[1747150912158,0.26278586,103700.0,103690.0,0.56405181]
[1747150912338,0.27242906,103700.0,103690.0,0.56405181]
[1747150912531,0.27242906,103700.0,103690.0,0.57369556]
[1747150912697,0.06992183,103700.0,103690.0,0.57369547]
[1747150912898,0.27242896,103700.0,103690.0,0.56405172]
[1747150913114,0.06992183,103700.0,103690.0,0.57569547]
[1747150913323,0.06027835,103700.0,103690.0,0.58533848]
[1747150913498,0.02902127,103700.0,103690.0,0.58733848]
[1747150913703,0.02902127,103700.0,103690.0,0.58733857]
[1747150914149,0.03866437,103700.0,103690.0,0.58733857]
[1747150914783,0.03866428,103700.0,103690.0,0.58733857]
[1747150915130,0.03866428,103700.0,103690.0,0.56805134]
[1747150915329,0.04830748,103700.0,103690.0,0.577695]
[1747150915575,0.02902127,103700.0,103690.0,0.577695]
[1747150915752,0.07876428,103700.0,103690.0,0.55840759]
[1747150915955,0.27162896,103700.0,103690.0,0.55840759]
[1747150916162,0.07876493,103700.0,103690.0,0.56805125]
[1747150916591,0.06912183,103700.0,103690.0,0.57769482]
[1747150917172,0.07876503,103700.0,103690.0,0.56805125]
[1747150917377,0.07876493,103700.0,103690.0,0.57769482]
[1747150918253,0.06912117,103700.0,103690.0,0.5873383]
[1747150918457,0.02902117,103700.0,103690.0,0.5873383]
[1747150918876,0.03866418,103700.0,103690.0,0.55840759]
[1747150919063,0.03866418,103700.0,103690.0,0.57769464]
[1747150919427,0.03866418,103700.0,103690.0,0.80445464]
[1747150919748,0.23152821,103700.0,103690.0,0.79481116]
[1747150920117,0.25116821,103700.0,103690.0,0.79481116]